{"text_format":"3","workbook":"xlsx","n_sheets":14,"sheets":["patarimai","suvestinė","sau","vas","kov","bal","geg","bir","lie","rgp","rgs","spl","lap","grd"],"not_rendered":{"charts":1,"defined_names":27},"read":"whole","date_system":"1900"}

{"sheet":"patarimai","index":0,"n_rows":18,"n_cols":1,"rows_kept":18}
["ŠABLONO PATARIMAI"]
["Ar yra paprastas būdas pereiti iš išlaidų tendencijų suvestinės lapo į mėnesio išlaidų informaciją (ir atvirkščiai)?"]
["Norėdami greitai pereiti prie konkretaus mėnesio išlaidų, spustelėkite susijusį naršymo saitą virš diagramos, pvz., Sau naršymo saitą langelyje B2. Tada, norėdami grįžti į išlaidų tendencijų darbalapį, spustelėkite naršymo saitą Suvestinė langelyje D1. "]
["Norėdami grįžti į šį patarimų darbalapį, suvestinės darbalapyje pasirinkite N2. Jei norite matyti visų mėnesių darbalapius, pasirinkite E1."]
["Kaip įtraukti naują išlaidų tipą į išlaidų suvestinę arba naujas mėnesio išlaidas?"]
["Po diagrama pateikta išlaidų suvestinė ir kiekvieno mėnesio išlaidų informacija yra „Excel“ lentelės. Norėdami įtraukti naujų eilučių į bet kurią „Excel“ lentelę, atlikite vieną iš toliau nurodytų veiksmų."]
[{"$f":"ROW(A1)&\". Jei lentelėje nėra sumos eilutės, pradėkite vesti po lentele ir ji bus automatiškai išplėsta paspaudus Enter arba Tab klavišą.\"","v":"1. Jei lentelėje nėra sumos eilutės, pradėkite vesti po lentele ir ji bus automatiškai išplėsta paspaudus Enter arba Tab klavišą."}]
[{"$f":"ROW(A2)&\". Perkelkite langelio žymiklį į paskutinį langelį virš sumos eilutės, pvz., paskutinių išlaidų sumos, ir paspauskite klavišą Tab.\"","v":"2. Perkelkite langelio žymiklį į paskutinį langelį virš sumos eilutės, pvz., paskutinių išlaidų sumos, ir paspauskite klavišą Tab."}]
[{"$f":"ROW(A3)&\". Dešiniuoju pelės mygtuku spustelėkite lentelę ir iššokantįjį meniu nukreipkite žymiklį į Įterpti ir spustelėkite Lentelės eilutės viršuje arba Lentelės eilutės apačioje.\"","v":"3. Dešiniuoju pelės mygtuku spustelėkite lentelę ir iššokantįjį meniu nukreipkite žymiklį į Įterpti ir spustelėkite Lentelės eilutės viršuje arba Lentelės eilutės apačioje."}]
[{"$f":"ROW(A4)&\". Apatiniame dešiniajame lentelės kampe perkelkite pelės žymiklį ant lentelės dydžio keitimo rankenėlės ir vilkite norėdami padidinti galimų lentelės eilučių skaičių.\"","v":"4. Apatiniame dešiniajame lentelės kampe perkelkite pelės žymiklį ant lentelės dydžio keitimo rankenėlės ir vilkite norėdami padidinti galimų lentelės eilučių skaičių."}]
["Įveskite išlaidas suvestinės darbalapyje esančios lentelės IšlaidųSuvestinė stulpelyje Išlaidos."]
["Įtraukite kiekvieno išlaidų tipo išlaidų sumą į mėnesio, kurį patirtos išlaidos, darbalapį."]
["Pavyzdžiui: „Išlaidos 1“ nurodomos nuo sausio iki birželio ir iki gruodžio. "]
[{"$f":"ROW(A1)&\". Išlaidos 1 yra įvedamos suvestinės darbalapyje dalyje Išlaidos, lentelėje IšlaidųSuvestinė (kaip išlaidų tipo pavadinimas).\"","v":"1. Išlaidos 1 yra įvedamos suvestinės darbalapyje dalyje Išlaidos, lentelėje IšlaidųSuvestinė (kaip išlaidų tipo pavadinimas)."}]
[{"$f":"ROW(A2)&\". Kiekvieno mėnesio išlaidų sumą įveskite atitinkamo mėnesio darbalapyje.\"","v":"2. Kiekvieno mėnesio išlaidų sumą įveskite atitinkamo mėnesio darbalapyje."}]
[{"$f":"ROW(A3)&\". Išlaidų tipas iš darbalapio IšlaidųSuvestinė sukuria kategorijų sąrašą kiekvieno mėnesio darbalapio stulpelyje Kategorija.\"","v":"3. Išlaidų tipas iš darbalapio IšlaidųSuvestinė sukuria kategorijų sąrašą kiekvieno mėnesio darbalapio stulpelyje Kategorija."}]
[{"$f":"ROW(A4)&\". Naudokite kategorijų sąrašą stulpelyje Kategorija, kad pasirinktumėte atitinkamą įvestos išlaidų sumos išlaidų tipą.\"","v":"4. Naudokite kategorijų sąrašą stulpelyje Kategorija, kad pasirinktumėte atitinkamą įvestos išlaidų sumos išlaidų tipą."}]
[{"$f":"ROW(A5)&\". Norėdami įtraukti bet kurio mėnesio naujas išlaidas, į suvestinės darbalapio lentelę IšlaidųSuvestinė įtraukite naują eilutę, tada įveskite atitinkamą išlaidų informaciją mėnesio darbalapyje, kuriam jos taikomos.\"","v":"5. Norėdami įtraukti bet kurio mėnesio naujas išlaidas, į suvestinės darbalapio lentelę IšlaidųSuvestinė įtraukite naują eilutę, tada įveskite atitinkamą išlaidų informaciją mėnesio darbalapyje, kuriam jos taikomos."}]

{"sheet":"suvestinė","index":1,"n_rows":10,"n_cols":15,"rows_kept":10}
["IŠLAIDŲ TENDENCIJOS"]
[null,"Sau","Vas","Kov","Bal","Geg","Bir","Lie","Rgp","Rgs","Spl","Lap","Grd","Patarimai"]
[]
["Išlaidos","Sau","Vas","Kov","Bal","Geg","Bir","Lie","Rgp","Rgs","Spl","Lap","Grd","Suma","Tendencija"]
["1 išlaidos",{"$f":"SUMIFS(IšlSau[Suma], IšlSau[Kategorija], IšlaidųSuvestinė[[#This Row],[Išlaidos]])","v":{"v":33,"d":"33.00"}},{"$f":"SUMIFS(IšlVas[Suma], IšlVas[Kategorija], IšlaidųSuvestinė[[#This Row],[Išlaidos]])","v":{"v":375,"d":"375.00"}},{"$f":"SUMIFS(IšlKov[Suma], IšlKov[Kategorija], IšlaidųSuvestinė[[#This Row],[Išlaidos]])","v":{"v":33,"d":"33.00"}},{"$f":"SUMIFS(IšlBal[Suma], IšlBal[Kategorija], IšlaidųSuvestinė[[#This Row],[Išlaidos]])","v":{"v":45,"d":"45.00"}},{"$f":"SUMIFS(IšlGeg[Suma], IšlGeg[Kategorija], IšlaidųSuvestinė[[#This Row],[Išlaidos]])","v":{"v":375,"d":"375.00"}},{"$f":"SUMIFS(IšlBir[Suma], IšlBir[Kategorija], IšlaidųSuvestinė[[#This Row],[Išlaidos]])","v":{"v":201,"d":"201.00"}},{"$f":"SUMIFS(IšlLie[Suma], IšlLie[Kategorija], IšlaidųSuvestinė[[#This Row],[Išlaidos]])","v":{"v":0,"d":"0.00"}},{"$f":"SUMIFS(IšlRgp[Suma], IšlRgp[Kategorija], IšlaidųSuvestinė[[#This Row],[Išlaidos]])","v":{"v":0,"d":"0.00"}},{"$f":"SUMIFS(IšlRgs[Suma], IšlRgs[Kategorija], IšlaidųSuvestinė[[#This Row],[Išlaidos]])","v":{"v":0,"d":"0.00"}},{"$f":"SUMIFS(IšlSpl[Suma], IšlSpl[Kategorija], IšlaidųSuvestinė[[#This Row],[Išlaidos]])","v":{"v":0,"d":"0.00"}},{"$f":"SUMIFS(IšlRgs[Suma], IšlRgs[Kategorija], IšlaidųSuvestinė[[#This Row],[Išlaidos]])","v":{"v":0,"d":"0.00"}},{"$f":"SUMIFS(IšlGrd[Suma], IšlGrd[Kategorija], IšlaidųSuvestinė[[#This Row],[Išlaidos]])","v":{"v":201,"d":"201.00"}},{"$f":"SUM(IšlaidųSuvestinė[[#This Row],[Sau]:[Grd]])","v":{"v":1263,"d":"1,263.00"}}]
["2 išlaidos",{"$f":"SUMIFS(IšlSau[Suma], IšlSau[Kategorija], IšlaidųSuvestinė[[#This Row],[Išlaidos]])","v":{"v":238,"d":"238.00"}},{"$f":"SUMIFS(IšlVas[Suma], IšlVas[Kategorija], IšlaidųSuvestinė[[#This Row],[Išlaidos]])","v":{"v":238,"d":"238.00"}},{"$f":"SUMIFS(IšlKov[Suma], IšlKov[Kategorija], IšlaidųSuvestinė[[#This Row],[Išlaidos]])","v":{"v":238,"d":"238.00"}},{"$f":"SUMIFS(IšlBal[Suma], IšlBal[Kategorija], IšlaidųSuvestinė[[#This Row],[Išlaidos]])","v":{"v":123,"d":"123.00"}},{"$f":"SUMIFS(IšlGeg[Suma], IšlGeg[Kategorija], IšlaidųSuvestinė[[#This Row],[Išlaidos]])","v":{"v":111,"d":"111.00"}},{"$f":"SUMIFS(IšlBir[Suma], IšlBir[Kategorija], IšlaidųSuvestinė[[#This Row],[Išlaidos]])","v":{"v":98,"d":"98.00"}},{"$f":"SUMIFS(IšlLie[Suma], IšlLie[Kategorija], IšlaidųSuvestinė[[#This Row],[Išlaidos]])","v":{"v":0,"d":"0.00"}},{"$f":"SUMIFS(IšlRgp[Suma], IšlRgp[Kategorija], IšlaidųSuvestinė[[#This Row],[Išlaidos]])","v":{"v":0,"d":"0.00"}},{"$f":"SUMIFS(IšlRgs[Suma], IšlRgs[Kategorija], IšlaidųSuvestinė[[#This Row],[Išlaidos]])","v":{"v":0,"d":"0.00"}},{"$f":"SUMIFS(IšlSpl[Suma], IšlSpl[Kategorija], IšlaidųSuvestinė[[#This Row],[Išlaidos]])","v":{"v":0,"d":"0.00"}},{"$f":"SUMIFS(IšlRgs[Suma], IšlRgs[Kategorija], IšlaidųSuvestinė[[#This Row],[Išlaidos]])","v":{"v":0,"d":"0.00"}},{"$f":"SUMIFS(IšlGrd[Suma], IšlGrd[Kategorija], IšlaidųSuvestinė[[#This Row],[Išlaidos]])","v":{"v":440,"d":"440.00"}},{"$f":"SUM(IšlaidųSuvestinė[[#This Row],[Sau]:[Grd]])","v":{"v":1486,"d":"1,486.00"}}]
["3 išlaidos",{"$f":"SUMIFS(IšlSau[Suma], IšlSau[Kategorija], IšlaidųSuvestinė[[#This Row],[Išlaidos]])","v":{"v":110,"d":"110.00"}},{"$f":"SUMIFS(IšlVas[Suma], IšlVas[Kategorija], IšlaidųSuvestinė[[#This Row],[Išlaidos]])","v":{"v":110,"d":"110.00"}},{"$f":"SUMIFS(IšlKov[Suma], IšlKov[Kategorija], IšlaidųSuvestinė[[#This Row],[Išlaidos]])","v":{"v":165,"d":"165.00"}},{"$f":"SUMIFS(IšlBal[Suma], IšlBal[Kategorija], IšlaidųSuvestinė[[#This Row],[Išlaidos]])","v":{"v":125,"d":"125.00"}},{"$f":"SUMIFS(IšlGeg[Suma], IšlGeg[Kategorija], IšlaidųSuvestinė[[#This Row],[Išlaidos]])","v":{"v":333,"d":"333.00"}},{"$f":"SUMIFS(IšlBir[Suma], IšlBir[Kategorija], IšlaidųSuvestinė[[#This Row],[Išlaidos]])","v":{"v":122,"d":"122.00"}},{"$f":"SUMIFS(IšlLie[Suma], IšlLie[Kategorija], IšlaidųSuvestinė[[#This Row],[Išlaidos]])","v":{"v":0,"d":"0.00"}},{"$f":"SUMIFS(IšlRgp[Suma], IšlRgp[Kategorija], IšlaidųSuvestinė[[#This Row],[Išlaidos]])","v":{"v":0,"d":"0.00"}},{"$f":"SUMIFS(IšlRgs[Suma], IšlRgs[Kategorija], IšlaidųSuvestinė[[#This Row],[Išlaidos]])","v":{"v":0,"d":"0.00"}},{"$f":"SUMIFS(IšlSpl[Suma], IšlSpl[Kategorija], IšlaidųSuvestinė[[#This Row],[Išlaidos]])","v":{"v":0,"d":"0.00"}},{"$f":"SUMIFS(IšlRgs[Suma], IšlRgs[Kategorija], IšlaidųSuvestinė[[#This Row],[Išlaidos]])","v":{"v":0,"d":"0.00"}},{"$f":"SUMIFS(IšlGrd[Suma], IšlGrd[Kategorija], IšlaidųSuvestinė[[#This Row],[Išlaidos]])","v":{"v":122,"d":"122.00"}},{"$f":"SUM(IšlaidųSuvestinė[[#This Row],[Sau]:[Grd]])","v":{"v":1087,"d":"1,087.00"}}]
["4 išlaidos",{"$f":"SUMIFS(IšlSau[Suma], IšlSau[Kategorija], IšlaidųSuvestinė[[#This Row],[Išlaidos]])","v":{"v":426,"d":"426.00"}},{"$f":"SUMIFS(IšlVas[Suma], IšlVas[Kategorija], IšlaidųSuvestinė[[#This Row],[Išlaidos]])","v":{"v":84,"d":"84.00"}},{"$f":"SUMIFS(IšlKov[Suma], IšlKov[Kategorija], IšlaidųSuvestinė[[#This Row],[Išlaidos]])","v":{"v":84,"d":"84.00"}},{"$f":"SUMIFS(IšlBal[Suma], IšlBal[Kategorija], IšlaidųSuvestinė[[#This Row],[Išlaidos]])","v":{"v":426,"d":"426.00"}},{"$f":"SUMIFS(IšlGeg[Suma], IšlGeg[Kategorija], IšlaidųSuvestinė[[#This Row],[Išlaidos]])","v":{"v":125,"d":"125.00"}},{"$f":"SUMIFS(IšlBir[Suma], IšlBir[Kategorija], IšlaidųSuvestinė[[#This Row],[Išlaidos]])","v":{"v":187,"d":"187.00"}},{"$f":"SUMIFS(IšlLie[Suma], IšlLie[Kategorija], IšlaidųSuvestinė[[#This Row],[Išlaidos]])","v":{"v":0,"d":"0.00"}},{"$f":"SUMIFS(IšlRgp[Suma], IšlRgp[Kategorija], IšlaidųSuvestinė[[#This Row],[Išlaidos]])","v":{"v":0,"d":"0.00"}},{"$f":"SUMIFS(IšlRgs[Suma], IšlRgs[Kategorija], IšlaidųSuvestinė[[#This Row],[Išlaidos]])","v":{"v":0,"d":"0.00"}},{"$f":"SUMIFS(IšlSpl[Suma], IšlSpl[Kategorija], IšlaidųSuvestinė[[#This Row],[Išlaidos]])","v":{"v":0,"d":"0.00"}},{"$f":"SUMIFS(IšlRgs[Suma], IšlRgs[Kategorija], IšlaidųSuvestinė[[#This Row],[Išlaidos]])","v":{"v":0,"d":"0.00"}},{"$f":"SUMIFS(IšlGrd[Suma], IšlGrd[Kategorija], IšlaidųSuvestinė[[#This Row],[Išlaidos]])","v":{"v":187,"d":"187.00"}},{"$f":"SUM(IšlaidųSuvestinė[[#This Row],[Sau]:[Grd]])","v":{"v":1519,"d":"1,519.00"}}]
["5 išlaidos",{"$f":"SUMIFS(IšlSau[Suma], IšlSau[Kategorija], IšlaidųSuvestinė[[#This Row],[Išlaidos]])","v":{"v":54,"d":"54.00"}},{"$f":"SUMIFS(IšlVas[Suma], IšlVas[Kategorija], IšlaidųSuvestinė[[#This Row],[Išlaidos]])","v":{"v":54,"d":"54.00"}},{"$f":"SUMIFS(IšlKov[Suma], IšlKov[Kategorija], IšlaidųSuvestinė[[#This Row],[Išlaidos]])","v":{"v":54,"d":"54.00"}},{"$f":"SUMIFS(IšlBal[Suma], IšlBal[Kategorija], IšlaidųSuvestinė[[#This Row],[Išlaidos]])","v":{"v":98,"d":"98.00"}},{"$f":"SUMIFS(IšlGeg[Suma], IšlGeg[Kategorija], IšlaidųSuvestinė[[#This Row],[Išlaidos]])","v":{"v":33,"d":"33.00"}},{"$f":"SUMIFS(IšlBir[Suma], IšlBir[Kategorija], IšlaidųSuvestinė[[#This Row],[Išlaidos]])","v":{"v":441,"d":"441.00"}},{"$f":"SUMIFS(IšlLie[Suma], IšlLie[Kategorija], IšlaidųSuvestinė[[#This Row],[Išlaidos]])","v":{"v":0,"d":"0.00"}},{"$f":"SUMIFS(IšlRgp[Suma], IšlRgp[Kategorija], IšlaidųSuvestinė[[#This Row],[Išlaidos]])","v":{"v":0,"d":"0.00"}},{"$f":"SUMIFS(IšlRgs[Suma], IšlRgs[Kategorija], IšlaidųSuvestinė[[#This Row],[Išlaidos]])","v":{"v":0,"d":"0.00"}},{"$f":"SUMIFS(IšlSpl[Suma], IšlSpl[Kategorija], IšlaidųSuvestinė[[#This Row],[Išlaidos]])","v":{"v":0,"d":"0.00"}},{"$f":"SUMIFS(IšlRgs[Suma], IšlRgs[Kategorija], IšlaidųSuvestinė[[#This Row],[Išlaidos]])","v":{"v":0,"d":"0.00"}},{"$f":"SUMIFS(IšlGrd[Suma], IšlGrd[Kategorija], IšlaidųSuvestinė[[#This Row],[Išlaidos]])","v":{"v":99,"d":"99.00"}},{"$f":"SUM(IšlaidųSuvestinė[[#This Row],[Sau]:[Grd]])","v":{"v":833,"d":"833.00"}}]
["Suma",{"$f":"SUBTOTAL(109,IšlaidųSuvestinė[Sau])","v":{"v":861,"d":"861.00"}},{"$f":"SUBTOTAL(109,IšlaidųSuvestinė[Vas])","v":{"v":861,"d":"861.00"}},{"$f":"SUBTOTAL(109,IšlaidųSuvestinė[Kov])","v":{"v":574,"d":"574.00"}},{"$f":"SUBTOTAL(109,IšlaidųSuvestinė[Bal])","v":{"v":817,"d":"817.00"}},{"$f":"SUBTOTAL(109,IšlaidųSuvestinė[Geg])","v":{"v":977,"d":"977.00"}},{"$f":"SUBTOTAL(109,IšlaidųSuvestinė[Bir])","v":{"v":1049,"d":"1,049.00"}},{"$f":"SUBTOTAL(109,IšlaidųSuvestinė[Lie])","v":{"v":0,"d":"0.00"}},{"$f":"SUBTOTAL(109,IšlaidųSuvestinė[Rgp])","v":{"v":0,"d":"0.00"}},{"$f":"SUBTOTAL(109,IšlaidųSuvestinė[Rgs])","v":{"v":0,"d":"0.00"}},{"$f":"SUBTOTAL(109,IšlaidųSuvestinė[Spl])","v":{"v":0,"d":"0.00"}},{"$f":"SUBTOTAL(109,IšlaidųSuvestinė[Lap])","v":{"v":0,"d":"0.00"}},{"$f":"SUBTOTAL(109,IšlaidųSuvestinė[Grd])","v":{"v":1049,"d":"1,049.00"}},{"$f":"SUBTOTAL(109,IšlaidųSuvestinė[Suma])","v":{"v":6188,"d":"6,188.00"}}]

{"sheet":"sau","index":2,"n_rows":9,"n_cols":5,"rows_kept":9,"merged":[[0,0,0,2]]}
["SAUSIO MĖNESIO IŠLAIDOS",null,null,"Suvestinė","Patarimai"]
["Data","PU Nr.","Suma","Kategorija","Aprašas"]
[{"$f":"DATE(YEAR(TODAY()),1,4)","v":"2017-01-04"},"A-12345",{"v":33,"d":"33.00"},"1 išlaidos","Atsargos"]
[{"$f":"DATE(YEAR(TODAY()),1,5)","v":"2017-01-05"},"A-12346",{"v":238,"d":"238.00"},"2 išlaidos"]
[null,null,{"v":342,"d":"342.00"},"4 išlaidos"]
[null,null,{"v":110,"d":"110.00"},"3 išlaidos"]
[null,null,{"v":84,"d":"84.00"},"4 išlaidos"]
[null,null,{"v":54,"d":"54.00"},"5 išlaidos"]
["Suma",null,{"$f":"SUBTOTAL(109,IšlSau[Suma])","v":{"v":861,"d":"861.00"}}]

{"sheet":"vas","index":3,"n_rows":9,"n_cols":5,"rows_kept":9,"merged":[[0,0,0,2]]}
["VASARIO MĖNESIO IŠLAIDOS",null,null,"Suvestinė","Patarimai"]
["Data","PU Nr.","Suma","Kategorija","Aprašas"]
[{"$f":"DATE(YEAR(TODAY()),2,3)","v":"2017-02-03"},"A-12345",{"v":33,"d":"33.00"},"1 išlaidos","Atsargos"]
[{"$f":"DATE(YEAR(TODAY()),2,4)","v":"2017-02-04"},"A-12346",{"v":238,"d":"238.00"},"2 išlaidos"]
[null,null,{"v":342,"d":"342.00"},"1 išlaidos"]
[null,null,{"v":110,"d":"110.00"},"3 išlaidos"]
[null,null,{"v":84,"d":"84.00"},"4 išlaidos"]
[null,null,{"v":54,"d":"54.00"},"5 išlaidos"]
["Suma",null,{"$f":"SUBTOTAL(109,IšlVas[Suma])","v":{"v":861,"d":"861.00"}}]

{"sheet":"kov","index":4,"n_rows":9,"n_cols":5,"rows_kept":9,"merged":[[0,0,0,2]]}
["KOVO MĖNESIO IŠLAIDOS",null,null,"Suvestinė","Patarimai"]
["Data","PU Nr.","Suma","Kategorija","Aprašas"]
[{"$f":"DATE(YEAR(TODAY()),3,5)","v":"2017-03-05"},"A-12345",{"v":33,"d":"33.00"},"1 išlaidos","Atsargos"]
[{"$f":"DATE(YEAR(TODAY()),3,6)","v":"2017-03-06"},"A-12346",{"v":238,"d":"238.00"},"2 išlaidos"]
[null,null,{"v":55,"d":"55.00"},"3 išlaidos"]
[null,null,{"v":110,"d":"110.00"},"3 išlaidos"]
[null,null,{"v":84,"d":"84.00"},"4 išlaidos"]
[null,null,{"v":54,"d":"54.00"},"5 išlaidos"]
["Suma",null,{"$f":"SUBTOTAL(109,IšlKov[Suma])","v":{"v":574,"d":"574.00"}}]

{"sheet":"bal","index":5,"n_rows":9,"n_cols":5,"rows_kept":9,"merged":[[0,0,0,2]]}
["BALANDŽIO MĖNESIO IŠLAIDOS",null,null,"Suvestinė","Patarimai"]
["Data","PU Nr.","Suma","Kategorija","Aprašas"]
[{"$f":"DATE(YEAR(TODAY()),4,4)","v":"2017-04-04"},"A-12345",{"v":45,"d":"45.00"},"1 išlaidos","Atsargos"]
[{"$f":"DATE(YEAR(TODAY()),4,8)","v":"2017-04-08"},"A-12346",{"v":123,"d":"123.00"},"2 išlaidos"]
[null,null,{"v":342,"d":"342.00"},"4 išlaidos"]
[null,null,{"v":125,"d":"125.00"},"3 išlaidos"]
[null,null,{"v":84,"d":"84.00"},"4 išlaidos"]
[null,null,{"v":98,"d":"98.00"},"5 išlaidos"]
["Suma",null,{"$f":"SUBTOTAL(109,IšlBal[Suma])","v":{"v":817,"d":"817.00"}}]

{"sheet":"geg","index":6,"n_rows":9,"n_cols":5,"rows_kept":9,"merged":[[0,0,0,2]]}
["GEGUŽĖS MĖNESIO IŠLAIDOS",null,null,"Suvestinė","Patarimai"]
["Data","PU Nr.","Suma","Kategorija","Aprašas"]
[{"$f":"DATE(YEAR(TODAY()),5,3)","v":"2017-05-03"},"A-12345",{"v":33,"d":"33.00"},"1 išlaidos","Atsargos"]
[{"$f":"DATE(YEAR(TODAY()),5,8)","v":"2017-05-08"},"A-12346",{"v":111,"d":"111.00"},"2 išlaidos"]
[null,null,{"v":342,"d":"342.00"},"1 išlaidos"]
[null,null,{"v":333,"d":"333.00"},"3 išlaidos"]
[null,null,{"v":125,"d":"125.00"},"4 išlaidos"]
[null,null,{"v":33,"d":"33.00"},"5 išlaidos"]
["Suma",null,{"$f":"SUBTOTAL(109,IšlGeg[Suma])","v":{"v":977,"d":"977.00"}}]

{"sheet":"bir","index":7,"n_rows":9,"n_cols":5,"rows_kept":9,"merged":[[0,0,0,2]]}
["BIRŽELIO MĖNESIO IŠLAIDOS",null,null,"Suvestinė","Patarimai"]
["Data","PU Nr.","Suma","Kategorija","Aprašas"]
[{"$f":"DATE(YEAR(TODAY()),6,7)","v":"2017-06-07"},"A-12345",{"v":201,"d":"201.00"},"1 išlaidos","Atsargos"]
[{"$f":"DATE(YEAR(TODAY()),6,8)","v":"2017-06-08"},"A-12346",{"v":98,"d":"98.00"},"2 išlaidos"]
[null,null,{"v":342,"d":"342.00"},"5 išlaidos"]
[null,null,{"v":122,"d":"122.00"},"3 išlaidos"]
[null,null,{"v":187,"d":"187.00"},"4 išlaidos"]
[null,null,{"v":99,"d":"99.00"},"5 išlaidos"]
["Suma",null,{"$f":"SUBTOTAL(109,IšlBir[Suma])","v":{"v":1049,"d":"1,049.00"}}]

{"sheet":"lie","index":8,"n_rows":9,"n_cols":5,"rows_kept":9,"merged":[[0,0,0,2]]}
["LIEPOS MĖNESIO IŠLAIDOS",null,null,"Suvestinė","Patarimai"]
["Data","PU Nr.","Suma","Kategorija","Aprašas"]
[{"$f":"DATE(YEAR(TODAY()),7,9)","v":"2017-07-09"},"A-12345",null,"1 išlaidos","Atsargos"]
[{"$f":"DATE(YEAR(TODAY()),7,14)","v":"2017-07-14"},"A-12346",null,"2 išlaidos"]
[{"$nulls":3},"2 išlaidos"]
[{"$nulls":3},"3 išlaidos"]
[{"$nulls":3},"4 išlaidos"]
[{"$nulls":3},"5 išlaidos"]
["Suma",null,{"$f":"SUBTOTAL(109,IšlLie[Suma])","v":{"v":0,"d":"0.00"}}]

{"sheet":"rgp","index":9,"n_rows":9,"n_cols":5,"rows_kept":9,"merged":[[0,0,0,2]]}
["RUGPJŪČIO MĖNESIO IŠLAIDOS",null,null,"Suvestinė","Patarimai"]
["Data","PU Nr.","Suma","Kategorija","Aprašas"]
[{"$f":"DATE(YEAR(TODAY()),8,8)","v":"2017-08-08"},"A-12345",null,"1 išlaidos","Atsargos"]
[{"$f":"DATE(YEAR(TODAY()),8,9)","v":"2017-08-09"},"A-12346",null,"2 išlaidos"]
[{"$nulls":3},"2 išlaidos"]
[{"$nulls":3},"3 išlaidos"]
[{"$nulls":3},"4 išlaidos"]
[{"$nulls":3},"5 išlaidos"]
["Suma",null,{"$f":"SUBTOTAL(109,IšlRgp[Suma])","v":{"v":0,"d":"0.00"}}]

{"sheet":"rgs","index":10,"n_rows":9,"n_cols":5,"rows_kept":9,"merged":[[0,0,0,2]]}
["RUGSĖJO MĖNESIO IŠLAIDOS",null,null,"Suvestinė","Patarimai"]
["Data","PU Nr.","Suma","Kategorija","Aprašas"]
[{"$f":"DATE(YEAR(TODAY()),9,9)","v":"2017-09-09"},"A-12345",null,"1 išlaidos","Atsargos"]
[{"$f":"DATE(YEAR(TODAY()),9,15)","v":"2017-09-15"},"A-12346",null,"2 išlaidos"]
[{"$nulls":3},"2 išlaidos"]
[{"$nulls":3},"3 išlaidos"]
[{"$nulls":3},"4 išlaidos"]
[{"$nulls":3},"5 išlaidos"]
["Suma",null,{"$f":"SUBTOTAL(109,IšlRgs[Suma])","v":{"v":0,"d":"0.00"}}]

{"sheet":"spl","index":11,"n_rows":9,"n_cols":5,"rows_kept":9,"merged":[[0,0,0,2]]}
["SPALIO MĖNESIO IŠLAIDOS",null,null,"Suvestinė","Patarimai"]
["Data","PU Nr.","Suma","Kategorija","Aprašas"]
[{"$f":"DATE(YEAR(TODAY()),10,10)","v":"2017-10-10"},"A-12345",null,"1 išlaidos","Atsargos"]
[{"$f":"DATE(YEAR(TODAY()),10,21)","v":"2017-10-21"},"A-12346",null,"2 išlaidos"]
[{"$nulls":3},"2 išlaidos"]
[{"$nulls":3},"3 išlaidos"]
[{"$nulls":3},"4 išlaidos"]
[{"$nulls":3},"5 išlaidos"]
["Suma",null,{"$f":"SUBTOTAL(109,IšlSpl[Suma])","v":{"v":0,"d":"0.00"}}]

{"sheet":"lap","index":12,"n_rows":9,"n_cols":5,"rows_kept":9,"merged":[[0,0,0,2]]}
["LAPKRIČIO MĖNESIO IŠLAIDOS",null,null,"Suvestinė","Patarimai"]
["Data","PU Nr.","Suma","Kategorija","Aprašas"]
[{"$f":"DATE(YEAR(TODAY()),11,14)","v":"2017-11-14"},"A-12345",null,"1 išlaidos","Atsargos"]
[{"$f":"DATE(YEAR(TODAY()),11,21)","v":"2017-11-21"},"A-12346",null,"2 išlaidos"]
[{"$nulls":3},"2 išlaidos"]
[{"$nulls":3},"3 išlaidos"]
[{"$nulls":3},"4 išlaidos"]
[{"$nulls":3},"5 išlaidos"]
["Suma",null,{"$f":"SUBTOTAL(109,IšlLap[Suma])","v":{"v":0,"d":"0.00"}}]

{"sheet":"grd","index":13,"n_rows":9,"n_cols":5,"rows_kept":9,"merged":[[0,0,0,2]]}
["GRUODŽIO MĖNESIO IŠLAIDOS",null,null,"Suvestinė","Patarimai"]
["Data","PU Nr.","Suma","Kategorija","Aprašas"]
[{"$f":"DATE(YEAR(TODAY()),12,2)","v":"2017-12-02"},"A-12345",{"v":201,"d":"201.00"},"1 išlaidos","Atsargos"]
[{"$f":"DATE(YEAR(TODAY()),12,24)","v":"2017-12-24"},"A-12346",{"v":98,"d":"98.00"},"2 išlaidos"]
[null,null,{"v":342,"d":"342.00"},"2 išlaidos"]
[null,null,{"v":122,"d":"122.00"},"3 išlaidos"]
[null,null,{"v":187,"d":"187.00"},"4 išlaidos"]
[null,null,{"v":99,"d":"99.00"},"5 išlaidos"]
["Suma",null,{"$f":"SUBTOTAL(109,IšlGrd[Suma])","v":{"v":1049,"d":"1,049.00"}}]